bitfinex/quotes_BTCUSD_20250829
["timestamp","ask_amount","ask_price","bid_price","bid_amount"]
[1756477451327,0.68366268,108980.0,108970.0,0.18851675]
[1756477451509,0.68366268,108980.0,108970.0,0.00498]
[1756477451733,0.68366268,108980.0,108970.0,0.18851675]
[1756477452370,0.001,108970.0,108960.0,0.18355359]
[1756477452522,0.001,108970.0,108960.0,0.18556359]
[1756477452726,0.68366268,108980.0,108970.0,0.18353675]
[1756477452933,0.50014277,108980.0,108970.0,0.18554675]
[1756477453114,0.68366268,108980.0,108970.0,0.18353675]
[1756477453478,0.68366268,108980.0,108970.0,0.18554675]
[1756477454204,0.68366268,108980.0,108970.0,0.18851675]
[1756477454606,0.50014277,108980.0,108970.0,0.18851675]
[1756477455440,0.50014277,108980.0,108970.0,0.27681307]
[1756477456286,0.50014277,108980.0,108970.0,0.27781307]
[1756477456949,0.49884277,108980.0,108970.0,0.27781307]
[1756477457783,0.49884277,108980.0,108970.0,1.17773968]
[1756477457990,0.49884277,108980.0,108970.0,1.4616785]
[1756477458197,0.49884277,108980.0,108970.0,1.8016785]
[1756477458599,0.49884277,108980.0,108970.0,0.90175189]
[1756477458802,0.49884277,108980.0,108970.0,1.8016785]
[1756477459079,0.49884277,108980.0,108970.0,1.8006785]
[1756477459241,0.49884277,108980.0,108970.0,0.90075189]
[1756477459446,0.49884277,108980.0,108970.0,0.90775189]
[1756477459948,0.49884277,108980.0,108970.0,0.90675189]
[1756477460143,0.49884277,108980.0,108970.0,0.57339907]
[1756477460632,0.49884277,108980.0,108970.0,0.57839907]
[1756477460844,0.49884277,108980.0,108970.0,0.57239907]
[1756477460980,0.49884277,108980.0,108970.0,0.57252907]
[1756477461790,0.49884277,108980.0,108970.0,0.57452907]
[1756477462196,0.49884277,108980.0,108970.0,0.56741907]
[1756477462393,0.49884277,108980.0,108970.0,0.45153675]
[1756477462624,0.49884277,108980.0,108970.0,0.45764675]
[1756477463198,0.49884277,108980.0,108970.0,0.45564675]
[1756477463600,0.49884277,108980.0,108970.0,0.19464675]
[1756477463802,0.68236268,108980.0,108970.0,0.18953675]
[1756477464021,1.58228929,108980.0,108970.0,0.006]
[1756477464260,1.58228929,108980.0,108970.0,0.18953675]
[1756477464462,1.59070374,108980.0,108970.0,0.18953675]
[1756477464670,0.69077713,108980.0,108970.0,0.18553675]
[1756477464884,0.69177713,108980.0,108970.0,0.18353675]
[1756477465313,0.69177713,108980.0,108970.0,0.18864675]
[1756477465518,0.69077713,108980.0,108970.0,0.18651675]
[1756477465715,0.18353675,108970.0,108960.0,0.18354296]
[1756477466357,0.18353675,108970.0,108950.0,0.25513272]
[1756477466358,0.18355359,108960.0,108950.0,0.25513272]
[1756477466579,0.18355359,108960.0,108950.0,0.22753972]
[1756477466753,0.18355359,108960.0,108950.0,0.22966972]
[1756477466958,0.18355359,108960.0,108950.0,0.22455972]
[1756477467494,0.18355359,108960.0,108950.0,0.22753972]
[1756477467704,0.18355359,108960.0,108950.0,0.22953972]
[1756477468049,1.08346336,108970.0,108950.0,0.22953972]
[1756477468249,0.18355359,108960.0,108950.0,0.22855972]
[1756477468863,1.08346336,108970.0,108950.0,0.23366972]
[1756477469071,0.18355359,108960.0,108950.0,0.23366972]
[1756477469302,1.08346336,108970.0,108960.0,0.18355359]
[1756477469499,1.59146528,108980.0,108960.0,0.18355359]
[1756477469753,0.79590854,108980.0,108960.0,0.18866359]
[1756477469955,0.18353675,108970.0,108960.0,0.18653359]
[1756477470162,0.18353675,108970.0,108960.0,0.18355359]
[1756477470449,0.18355359,108960.0,108950.0,0.23771824]
[1756477470666,0.18353675,108970.0,108960.0,0.18568359]
[1756477470881,0.18353675,108970.0,108960.0,0.18355359]
[1756477471086,0.18353675,108970.0,108960.0,0.18866359]
[1756477471302,0.18353675,108970.0,108960.0,0.18355359]
[1756477471514,1.67158561,108980.0,108960.0,0.18866359]
[1756477471739,0.18353675,108970.0,108950.0,0.23373824]
[1756477471945,0.18353675,108970.0,108960.0,0.18355359]
[1756477472160,0.771659,108980.0,108960.0,0.18866359]
[1756477472370,0.80322082,108980.0,108960.0,0.18866359]
[1756477472585,1.69683512,108980.0,108960.0,0.18866359]
[1756477472800,1.68100211,108980.0,108960.0,0.18866359]
[1756477473005,1.68000211,108980.0,108960.0,0.18653359]
[1756477473219,1.68000211,108980.0,108970.0,0.18353675]
[1756477473429,0.69177918,108980.0,108970.0,0.18864675]
[1756477473654,0.49984277,108980.0,108970.0,0.18864675]
[1756477474521,0.50084277,108980.0,108970.0,0.18864675]
[1756477474731,0.50184277,108980.0,108970.0,0.27694307]
[1756477475343,0.50084277,108980.0,108970.0,0.27694307]
[1756477475832,0.50184277,108980.0,108970.0,0.27694307]
[1756477476458,0.49984277,108980.0,108970.0,0.27694307]
[1756477476657,0.50084277,108980.0,108970.0,0.27694307]
[1756477476879,0.68436268,108980.0,108970.0,0.18864675]
[1756477477287,0.68336268,108980.0,108970.0,0.18353675]
[1756477477505,0.68336268,108980.0,108970.0,0.18553675]
[1756477477708,0.68236268,108980.0,108970.0,0.18753675]
[1756477478018,0.68236268,108980.0,108970.0,0.18953675]
[1756477478229,0.68236268,108980.0,108970.0,0.18753675]
[1756477478490,1.58228929,108980.0,108970.0,0.004]
[1756477478684,1.59071769,108980.0,108970.0,0.004]
[1756477479086,0.52412789,108980.0,108970.0,0.19264675]
[1756477479310,0.49884277,108980.0,108970.0,0.19264675]
[1756477479529,0.49884277,108980.0,108970.0,0.18864675]
[1756477479729,0.49884277,108980.0,108970.0,0.27694307]
[1756477479876,0.49884277,108980.0,108970.0,1.17686968]
[1756477480074,0.49884277,108980.0,108970.0,0.27694307]
[1756477480921,0.49984277,108980.0,108970.0,0.27694307]
[1756477481284,0.49884277,108980.0,108970.0,0.30453207]
[1756477481757,0.49984277,108980.0,108970.0,0.30453207]
[1756477482106,0.49884277,108980.0,108970.0,0.30453207]
[1756477483626,0.49884277,108980.0,108970.0,0.30753207]
[1756477484039,0.49884277,108980.0,108970.0,0.30953207]
[1756477484239,0.49984277,108980.0,108970.0,0.30953207]
[1756477484444,1.58328929,108980.0,108970.0,0.032589]
[1756477484711,1.58328929,108980.0,108970.0,0.18853675]
[1756477484862,0.68336268,108980.0,108970.0,0.005]
[1756477485063,1.59172284,108980.0,108970.0,0.005]
[1756477485268,1.58328929,108980.0,108970.0,0.18553675]
[1756477485468,1.58328929,108980.0,108970.0,0.18653675]
[1756477485769,0.68336268,108980.0,108970.0,0.18653675]
[1756477485986,0.68436268,108980.0,108970.0,0.003]
[1756477486855,1.58428929,108980.0,108970.0,0.003]
[1756477487074,0.18353675,108970.0,108960.0,0.18354353]
[1756477487481,0.68236268,108980.0,108960.0,0.18652353]
[1756477487641,0.69079993,108980.0,108970.0,0.18353675]
[1756477487834,0.69079993,108980.0,108960.0,0.18865353]
[1756477487835,0.69079993,108980.0,108960.0,0.18652353]
[1756477488052,0.49884277,108980.0,108970.0,1.17686968]
[1756477488256,0.49884277,108980.0,108970.0,0.34750307]
[1756477489035,0.49884277,108980.0,108970.0,0.25920675]
[1756477489452,0.49884277,108980.0,108970.0,0.25931675]
[1756477491118,0.49884277,108980.0,108970.0,0.26331675]
[1756477491333,0.49884277,108980.0,108970.0,0.26022675]
[1756477491555,0.49884277,108980.0,108970.0,0.26331675]
[1756477491763,0.49884277,108980.0,108970.0,0.25609675]
[1756477491971,0.49884277,108980.0,108970.0,0.25709675]
[1756477492523,0.49884277,108980.0,108970.0,0.26227675]
[1756477492728,0.49884277,108980.0,108970.0,0.26127675]
[1756477492929,0.49884277,108980.0,108970.0,0.25609675]
[1756477493331,0.49884277,108980.0,108970.0,0.25927675]
[1756477493773,0.49884277,108980.0,108970.0,1.24749968]
[1756477494392,0.49884277,108980.0,108970.0,1.24949968]
[1756477494620,0.49884277,108980.0,108970.0,1.2704385]
[1756477494981,0.49884277,108980.0,108970.0,0.39809989]
[1756477495156,0.49884277,108980.0,108970.0,1.2980265]
[1756477495328,0.49884277,108980.0,108970.0,0.39809989]
[1756477495647,0.49884277,108980.0,108970.0,1.2990265]
[1756477498265,0.49884277,108980.0,108970.0,1.6390265]
[1756477499222,0.49884277,108980.0,108970.0,1.9020265]
[1756477499665,0.49884277,108980.0,108970.0,1.9010265]
[1756477500206,0.49884277,108980.0,108970.0,0.99909989]
[1756477500363,0.49884277,108980.0,108970.0,1.8990265]
[1756477501318,0.49884277,108980.0,108970.0,1.9000265]
[1756477501535,0.49884277,108980.0,108970.0,0.97916107]
[1756477501738,0.49884277,108980.0,108970.0,0.97607107]
[1756477501988,0.49884277,108980.0,108970.0,0.97816107]
[1756477502238,0.49884277,108980.0,108970.0,1.87808768]
[1756477503037,0.49884277,108980.0,108970.0,1.88008768]
[1756477503401,0.49884277,108980.0,108970.0,0.98016107]
[1756477503786,0.49884277,108980.0,108970.0,1.54208768]
[1756477503986,0.49884277,108980.0,108970.0,1.5630265]
[1756477504286,0.49884277,108980.0,108970.0,0.66309989]
[1756477504499,0.49884277,108980.0,108970.0,1.5610265]
[1756477504721,0.49884277,108980.0,108970.0,0.66209989]
[1756477504927,0.49884277,108980.0,108970.0,1.5620265]
[1756477505147,0.49884277,108980.0,108970.0,1.5630265]
[1756477505355,0.49884277,108980.0,108970.0,0.63916107]
[1756477505635,0.49884277,108980.0,108970.0,0.54768475]
[1756477505876,1.58228929,108980.0,108970.0,0.032588]
[1756477506126,1.59073102,108980.0,108970.0,0.005]
[1756477506864,2.13053874,108980.0,108970.0,0.005]
[1756477507091,2.04224242,108980.0,108970.0,0.005]
[1756477507519,1.14231581,108980.0,108970.0,0.003]
[1756477507726,0.18355359,108960.0,108950.0,0.30585095]
[1756477507934,0.18355359,108960.0,108950.0,0.25568315]
[1756477508796,0.18355359,108960.0,108950.0,0.18356885]
[1756477509003,0.18350359,108960.0,108950.0,0.18456885]
[1756477509423,0.18350359,108960.0,108950.0,0.18656885]
[1756477510078,0.18350359,108960.0,108950.0,0.003]
[1756477511592,1.0834302,108960.0,108950.0,0.003]
[1756477512058,1.62530931,108960.0,108950.0,0.003]
[1756477512288,1.53490394,108960.0,108950.0,0.003]
[1756477512558,1.54333052,108960.0,108950.0,0.003]
[1756477512772,1.54332348,108960.0,108950.0,0.003]
[1756477513615,2.44325009,108960.0,108950.0,0.003]
[1756477513871,2.46824055,108960.0,108950.0,0.003]
[1756477514070,2.55248523,108960.0,108950.0,1e-08]
[1756477514275,0.18358729,108940.0,108930.0,1e-08]
[1756477514485,1.51181022,108940.0,108930.0,1e-08]
[1756477514900,0.61188361,108940.0,108930.0,1e-08]
[1756477515122,1.51181022,108940.0,108930.0,1e-08]
[1756477515321,1.52085775,108940.0,108930.0,1e-08]
[1756477515628,1.52085775,108940.0,108930.0,0.00014278]
[1756477516505,1.64065655,108940.0,108930.0,0.00014278]
[1756477516717,1.73219537,108940.0,108930.0,0.00014278]
[1756477518005,0.74397244,108940.0,108930.0,0.00014278]
[1756477518219,1.64489905,108940.0,108930.0,0.00014278]
[1756477518629,1.64389905,108940.0,108930.0,0.00014278]
[1756477518807,1.55236023,108940.0,108930.0,0.00014278]
[1756477519012,1.55006273,108940.0,108930.0,0.00014278]
[1756477519219,1.54566076,108940.0,108930.0,0.00014278]
[1756477519419,1.52485775,108940.0,108930.0,0.00014278]
[1756477520904,1.52985775,108940.0,108930.0,0.00014278]
[1756477521108,1.64332453,108940.0,108930.0,0.00014278]
[1756477521360,1.63932453,108940.0,108930.0,0.00014278]
[1756477521502,1.63832453,108940.0,108930.0,0.00014278]
[1756477521859,1.52685775,108940.0,108930.0,0.00014278]
[1756477522544,1.52685775,108940.0,108930.0,0.00333278]
[1756477522937,0.62693114,108940.0,108930.0,0.00333278]
[1756477523136,0.52958729,108940.0,108930.0,0.18905692]
[1756477523357,0.18958729,108940.0,108930.0,0.18905692]
[1756477523571,0.006,108940.0,108930.0,0.18905692]
[1756477524011,0.18358729,108940.0,108930.0,0.18905692]
[1756477524554,0.002,108940.0,108930.0,0.18905692]
[1756477524757,0.003,108940.0,108930.0,0.18905692]
[1756477525174,0.003,108940.0,108930.0,1.08898353]
[1756477525362,0.001,108940.0,108930.0,0.18905692]
[1756477525719,0.53268126,108960.0,108950.0,0.18357044]
[1756477525922,0.18357044,108950.0,108940.0,0.18676214]
[1756477526106,1.43260787,108960.0,108950.0,0.00319]
[1756477526529,1.43260787,108960.0,108950.0,0.18888044]
[1756477526698,0.53268126,108960.0,108950.0,0.00531]
[1756477526902,1.44938841,108960.0,108950.0,0.00531]
[1756477527440,0.18358245,108950.0,108930.0,0.21133795]
[1756477527590,0.18358245,108950.0,108930.0,0.21452795]
[1756477527591,0.18358729,108940.0,108930.0,0.21452795]
[1756477527843,0.18358729,108940.0,108930.0,0.22164795]
[1756477528258,1.0835139,108940.0,108930.0,0.00514278]
[1756477528460,1.17181022,108940.0,108930.0,0.00514278]
[1756477528665,0.27188361,108940.0,108930.0,0.00514278]
[1756477528873,1.17181022,108940.0,108930.0,0.00114278]
[1756477529175,1.17181022,108940.0,108930.0,0.00645278]
[1756477529379,1.17181022,108940.0,108930.0,0.00545278]
[1756477529583,1.17181022,108940.0,108930.0,0.19005692]
[1756477529961,0.18358729,108940.0,108930.0,0.19005692]
[1756477530825,0.52357044,108950.0,108940.0,0.18358729]
[1756477531036,0.52357044,108950.0,108940.0,0.18889729]
[1756477531037,0.20037989,108950.0,108940.0,0.18889729]
[1756477531247,0.18358729,108940.0,108930.0,0.18374692]
[1756477531456,0.18358729,108940.0,108930.0,0.18905692]
[1756477531671,0.18358729,108940.0,108930.0,0.00845278]
[1756477531879,0.18358729,108940.0,108930.0,0.00314278]
[1756477532089,1.0835139,108940.0,108930.0,0.00314278]
[1756477532289,1.17181022,108940.0,108930.0,0.00314278]
[1756477532697,0.27188361,108940.0,108930.0,0.18905692]
[1756477532997,0.18358729,108940.0,108930.0,0.19005692]
[1756477533420,0.20040766,108940.0,108930.0,0.19005692]
[1756477533634,0.20040959,108940.0,108930.0,0.00645278]
[1756477534071,1.1003362,108940.0,108930.0,0.00114278]
[1756477534273,1.1003362,108940.0,108930.0,0.18474692]
[1756477534471,1.1003362,108940.0,108930.0,0.00645278]
[1756477534903,1.1003362,108940.0,108930.0,0.00545278]
[1756477535118,1.1003362,108940.0,108930.0,0.00645278]
[1756477535299,0.20040959,108940.0,108930.0,0.00645278]
[1756477536064,0.20040959,108940.0,108930.0,0.19005692]
[1756477536311,0.20040959,108940.0,108930.0,0.00645278]
[1756477537457,1.1003362,108940.0,108930.0,0.00645278]
[1756477538045,1.1003362,108940.0,108930.0,0.18905692]
[1756477538289,0.20040959,108940.0,108930.0,0.00645278]
[1756477538501,1.53706287,108940.0,108930.0,0.00114278]
[1756477538859,1.53706287,108940.0,108930.0,0.00314278]
[1756477539074,1.53706287,108940.0,108930.0,0.00214278]
[1756477539499,1.55848539,108940.0,108930.0,0.00314278]
[1756477539708,1.54338725,108940.0,108930.0,0.00114278]
[1756477539852,1.54342385,108940.0,108930.0,0.00114278]
[1756477540254,1.54342385,108940.0,108930.0,1e-08]
[1756477540255,1.56436267,108940.0,108930.0,1e-08]
[1756477540469,1.61436267,108940.0,108930.0,1e-08]
[1756477540666,1.70265899,108940.0,108930.0,1e-08]
[1756477541790,1.56436267,108940.0,108930.0,1e-08]
[1756477542075,0.523621,108920.0,108910.0,0.0004]
[1756477542274,1.53713318,108920.0,108910.0,0.0004]
[1756477542479,1.54345969,108920.0,108910.0,0.0004]
[1756477542866,0.64353308,108920.0,108910.0,0.0004]
[1756477543098,1.54345969,108920.0,108910.0,0.0004]
[1756477543514,1.54346494,108920.0,108910.0,0.0004]
[1756477543930,1.54345346,108920.0,108910.0,0.0004]
[1756477544137,1.54345346,108920.0,108910.0,1e-08]
[1756477544138,1.70234978,108920.0,108910.0,1e-08]
[1756477544351,1.7232886,108920.0,108910.0,1e-08]
[1756477544965,1.63499228,108920.0,108910.0,1e-08]
[1756477545586,1.63599228,108920.0,108910.0,1e-08]
[1756477546419,1.68599228,108920.0,108910.0,1e-08]
[1756477546630,2.58591889,108920.0,108910.0,1e-08]
[1756477546838,2.58591889,108920.0,108900.0,1e-08]
[1756477546839,2.4444299,108910.0,108900.0,1e-08]
[1756477547044,2.60263207,108910.0,108900.0,1e-08]
[1756477547410,7.67202087,108910.0,108900.0,1e-08]
[1756477547609,7.63122669,108910.0,108900.0,1e-08]
[1756477547836,7.67362918,108910.0,108900.0,1e-08]
[1756477547998,7.72362918,108910.0,108900.0,1e-08]
[1756477549201,7.72562918,108910.0,108900.0,1e-08]
[1756477549997,7.72762918,108910.0,108900.0,1e-08]
[1756477550407,7.73262918,108910.0,108900.0,1e-08]
[1756477552674,0.52368846,108880.0,108870.0,0.03911431]
[1756477552874,1.52876445,108880.0,108870.0,0.03911431]
[1756477553122,1.52876445,108880.0,108870.0,0.04111431]
[1756477553763,1.52876445,108880.0,108870.0,0.005]
[1756477553958,1.51191139,108880.0,108870.0,0.00547759]
[1756477554189,1.53814476,108880.0,108870.0,0.00547759]
[1756477554647,1.53814476,108880.0,108870.0,0.00647759]
[1756477554850,0.29821581,108880.0,108870.0,0.00647759]
[1756477555030,0.20991949,108880.0,108870.0,0.00647759]
[1756477555447,1.1098461,108880.0,108870.0,0.00647759]
[1756477555652,1.53814242,108880.0,108870.0,0.00447759]
[1756477555869,1.53814242,108880.0,108870.0,0.00347759]
[1756477556076,1.53814242,108880.0,108870.0,0.00047759]
[1756477556077,1.54771334,108880.0,108870.0,0.00047759]
[1756477556305,0.52370533,108870.0,108860.0,0.0002]
[1756477556518,1.52871488,108870.0,108860.0,0.0002]
[1756477556747,1.68795002,108870.0,108860.0,1e-08]
[1756477556956,1.5496537,108870.0,108860.0,1e-08]
[1756477557609,1.5496581,108870.0,108860.0,1e-08]
[1756477558106,1.53071928,108870.0,108860.0,0.00500001]
[1756477558794,1.53071928,108870.0,108860.0,0.00200001]
[1756477559012,1.53071928,108870.0,108860.0,0.00500001]
[1756477559233,1.52871928,108870.0,108860.0,1e-08]
[1756477559698,1.53071928,108870.0,108860.0,0.00500001]
[1756477560799,1.53071928,108870.0,108860.0,0.00300001]
[1756477561004,1.53071928,108870.0,108860.0,1e-08]
[1756477562113,1.53071928,108870.0,108860.0,0.00500001]
[1756477562314,1.6190156,108870.0,108860.0,1e-08]
[1756477562525,1.6190156,108870.0,108860.0,0.00500001]
[1756477562936,1.6190156,108870.0,108860.0,1e-08]
[1756477563180,1.63371866,108870.0,108860.0,1e-08]
[1756477563419,1.60852589,108870.0,108860.0,1e-08]
[1756477563628,1.63373245,108870.0,108860.0,1e-08]
[1756477563826,1.65467127,108870.0,108860.0,1e-08]
[1756477564052,1.6740359,108870.0,108860.0,1e-08]
[1756477564234,1.67404395,108870.0,108860.0,1e-08]
[1756477564456,2.67397056,108870.0,108860.0,1e-08]
[1756477564637,2.67397831,108870.0,108860.0,1e-08]
[1756477565027,2.66557161,108870.0,108860.0,1e-08]
[1756477565221,1.42368258,108840.0,108830.0,0.0002]
[1756477565427,1.42368258,108840.0,108810.0,0.0685143]
[1756477565428,0.18378974,108820.0,108810.0,0.0685143]
[1756477565629,1.52882462,108820.0,108810.0,0.0705143]
[1756477565826,0.18380663,108810.0,108790.0,0.0002]
[1756477566038,1.52883841,108810.0,108790.0,0.0002]
[1756477566289,1.55173723,108810.0,108790.0,0.0002]
[1756477566610,1.64003355,108810.0,108800.0,0.00267798]
[1756477566816,1.64003355,108810.0,108800.0,0.00067798]
[1756477567081,1.62241723,108810.0,108800.0,0.00067798]
[1756477567514,1.62241723,108810.0,108790.0,0.0002]
[1756477567515,0.18382352,108800.0,108790.0,0.0002]
[1756477567752,2.42878191,108800.0,108790.0,0.0002]
[1756477567973,0.52385732,108780.0,108770.0,0.0002]
[1756477568178,0.61215364,108780.0,108770.0,0.0032]
[1756477568390,1.51208025,108780.0,108770.0,0.0052]
[1756477568601,1.51208025,108780.0,108770.0,0.0022]
[1756477568804,1.51186125,108780.0,108770.0,0.0022]
[1756477569009,1.51186125,108780.0,108770.0,0.0052]
[1756477569204,1.60015757,108780.0,108770.0,0.0052]
[1756477569422,0.62105957,108780.0,108770.0,0.0022]
[1756477569613,1.53776144,108780.0,108770.0,0.0052]
[1756477569806,1.53972144,108780.0,108770.0,0.0002]
[1756477569989,0.73141365,108780.0,108770.0,0.0002]
[1756477570186,1.63134026,108780.0,108770.0,0.0012]
[1756477570431,0.70851483,108780.0,108770.0,0.0012]
[1756477570593,1.60844144,108780.0,108770.0,0.0062]
[1756477570796,1.60844144,108780.0,108770.0,0.0022]
[1756477571007,1.60844144,108780.0,108770.0,0.0032]
[1756477571411,1.61040144,108780.0,108770.0,0.0012]
[1756477571622,0.52387423,108770.0,108760.0,0.003]
[1756477571818,0.19313896,108730.0,108720.0,0.003]
[1756477572016,0.18397571,108710.0,108700.0,0.04047378]
[1756477572218,1.08390232,108710.0,108700.0,0.18599264]
[1756477572429,0.18394187,108730.0,108710.0,0.18397571]
[1756477572635,0.18397571,108710.0,108700.0,0.08829632]
[1756477572834,0.18395879,108720.0,108710.0,0.18411893]
[1756477573019,0.20066337,108720.0,108710.0,0.18611893]
[1756477573218,0.18394187,108730.0,108720.0,0.18395879]
[1756477573444,0.20062432,108730.0,108720.0,0.18895879]
[1756477573654,0.18395879,108720.0,108710.0,0.00014322]
[1756477573931,1.0838854,108720.0,108710.0,0.00314322]
[1756477574053,1.10056875,108720.0,108710.0,0.00314322]
[1756477574253,1.10056875,108720.0,108710.0,0.00514322]
[1756477574483,1.10056875,108720.0,108710.0,0.01114322]
[1756477574693,1.53082507,108720.0,108710.0,0.00614322]
[1756477574885,1.52886507,108720.0,108710.0,0.00614322]
[1756477575111,1.52886507,108720.0,108710.0,0.00914322]
[1756477575261,1.53082507,108720.0,108710.0,0.00914322]
[1756477575459,1.53082507,108720.0,108690.0,8e-05]
[1756477575460,0.52399264,108700.0,108690.0,8e-05]
[1756477575663,2.41214218,108700.0,108690.0,0.00022282]
[1756477575866,0.67768354,108700.0,108690.0,0.00022282]
[1756477576066,2.47753676,108700.0,108690.0,0.00022282]
[1756477576374,2.48039549,108700.0,108690.0,0.00022282]
[1756477576577,2.48039549,108700.0,108660.0,0.01103844]
[1756477576578,0.18404343,108670.0,108660.0,0.00191569]
[1756477576874,1.17226636,108670.0,108660.0,0.00239346]
[1756477577093,0.18404124,108680.0,108660.0,0.18845383]
[1756477577369,1.51224994,108680.0,108660.0,0.18845383]
[1756477577587,1.51224994,108680.0,108670.0,0.18704343]
[1756477577588,0.34,108680.0,108670.0,0.18704343]
[1756477577837,0.52402649,108680.0,108670.0,0.005]
[1756477578038,0.19322342,108700.0,108680.0,0.18402649]
[1756477578248,0.52400956,108690.0,108670.0,0.18404343]
[1756477578492,0.4375271,108700.0,108680.0,0.002]
[1756477578704,1.52144643,108700.0,108680.0,0.18602649]
[1756477578903,1.52144671,108700.0,108680.0,0.18602649]
[1756477579025,1.52144671,108700.0,108690.0,0.0032]
[1756477579231,1.52144671,108700.0,108690.0,0.00531]
[1756477579441,0.08829632,108700.0,108690.0,0.18931956]
[1756477579666,0.89992661,108710.0,108700.0,0.18399134]
[1756477579838,0.98822293,108710.0,108700.0,0.18930134]
[1756477580074,1.17219864,108710.0,108700.0,0.00531]
[1756477580847,0.27227203,108710.0,108700.0,0.189446]
[1756477581147,1.17219864,108710.0,108700.0,0.00545336]
[1756477581367,1.23794178,108710.0,108700.0,0.00214336]
[1756477581572,1.57794178,108710.0,108700.0,0.00214336]
[1756477581779,1.51617864,108710.0,108700.0,0.00214336]
[1756477582189,1.51904864,108710.0,108700.0,0.00214336]
[1756477582397,2.41897525,108710.0,108700.0,0.00214336]
[1756477582598,1.51904864,108710.0,108700.0,0.00214336]
[1756477583140,1.51617864,108710.0,108700.0,0.00214336]
[1756477583347,1.60447496,108710.0,108700.0,0.00214336]
[1756477583770,0.61625203,108710.0,108700.0,0.00214336]
[1756477583970,1.51617864,108710.0,108700.0,0.00214336]
[1756477584181,2.41897525,108710.0,108700.0,0.00214336]
[1756477584347,2.41897525,108710.0,108660.0,0.00191569]
[1756477584348,0.18404343,108670.0,108660.0,0.00191569]
[1756477584594,1.17226636,108670.0,108660.0,0.00559346]
[1756477584835,1.51226636,108670.0,108660.0,0.00770346]
[1756477586798,1.51226636,108670.0,108660.0,0.00450346]
[1756477587029,1.55300272,108670.0,108660.0,0.00239346]
[1756477587234,1.62663272,108670.0,108660.0,0.00239346]
[1756477587445,1.62376272,108670.0,108660.0,0.00239346]
[1756477587876,1.63308092,108670.0,108660.0,0.00239346]
[1756477588093,0.73602431,108670.0,108660.0,0.00239346]
[1756477588299,0.1841112,108630.0,108620.0,0.11607742]
[1756477588607,1.17233413,108630.0,108620.0,0.07607]
[1756477588802,1.17233413,108630.0,108620.0,0.00531]
[1756477589051,0.08829632,108630.0,108620.0,0.18943815]
[1756477589252,0.98822293,108630.0,108620.0,0.18943815]
[1756477589476,1.17233413,108630.0,108620.0,0.18943815]
[1756477589687,0.00047562,108630.0,108620.0,0.00531]
[1756477589836,1.17280975,108630.0,108620.0,0.00531]
[1756477590057,0.00047562,108630.0,108620.0,0.18943815]
[1756477590863,0.00047562,108630.0,108620.0,0.23104944]
[1756477591073,0.00147562,108630.0,108620.0,0.31934576]
[1756477591524,0.00147562,108630.0,108620.0,0.34028458]
[1756477591705,0.00147562,108630.0,108620.0,1.24021119]
[1756477592027,1e-08,108630.0,108620.0,1.70097119]
[1756477592230,0.0721143,108670.0,108660.0,0.18406037]
[1756477592636,0.25615773,108670.0,108660.0,0.18951379]
[1756477592858,0.97204091,108670.0,108660.0,0.18951379]
[1756477593059,1.15608434,108670.0,108660.0,0.18951379]
[1756477593376,0.24915773,108670.0,108660.0,0.18951379]
[1756477593554,0.0651143,108670.0,108660.0,0.18951379]
[1756477593981,0.24915773,108670.0,108660.0,0.18951379]
[1756477594392,0.24915773,108670.0,108660.0,0.00545342]
[1756477594605,1.60718421,108670.0,108660.0,0.00014342]
[1756477595022,1.6238454,108670.0,108660.0,0.00114342]
[1756477595438,1.5587311,108670.0,108660.0,0.00014342]
[1756477595639,1.5567111,108670.0,108660.0,0.00225342]
[1756477595848,1.5567111,108670.0,108660.0,0.00645342]
[1756477596062,1.5567111,108670.0,108660.0,0.00114342]
[1756477596327,1.5587311,108670.0,108660.0,0.00114342]
[1756477596713,1.8987311,108670.0,108660.0,0.00114342]
[1756477596926,1.99325992,108670.0,108660.0,0.00114342]
[1756477597394,1.99425992,108670.0,108660.0,0.00114342]
[1756477597810,1.99525992,108670.0,108660.0,0.00114342]
[1756477598016,0.1841112,108630.0,108620.0,0.07396]
[1756477598222,0.18412815,108620.0,108610.0,0.066682]
[1756477598431,0.18412815,108620.0,108610.0,0.03947562]
[1756477598432,1.45183831,108620.0,108610.0,0.03947562]
[1756477598646,1.26771016,108620.0,108610.0,0.22893072]
[1756477599058,1.46854939,108620.0,108610.0,0.22893072]
[1756477599684,1.46854939,108620.0,108610.0,0.04478562]
[1756477599913,1.46854939,108620.0,108610.0,0.22893072]
[1756477600119,0.01671108,108620.0,108610.0,0.22893072]
[1756477600741,1.46855491,108630.0,108620.0,0.18412815]
[1756477600950,1.28444548,108630.0,108620.0,0.18943815]
[1756477601166,0.01673532,108630.0,108620.0,0.18943815]
[1756477601587,0.20084652,108630.0,108620.0,0.18943815]
[1756477601789,0.18412815,108620.0,108610.0,0.23381516]
[1756477602007,1.46857363,108620.0,108610.0,0.23593072]
[1756477602221,1.54668995,108620.0,108610.0,0.04347562]
[1756477602668,1.54470995,108620.0,108610.0,0.04558562]
[1756477602881,1.54669995,108620.0,108610.0,0.04347562]
[1756477603091,1.54669995,108620.0,108610.0,0.00447562]
[1756477603306,1.54669995,108620.0,108610.0,0.00047562]
[1756477604024,1.88669995,108620.0,108610.0,0.00047562]
[1756477604236,1.90801317,108620.0,108610.0,0.00047562]
[1756477604449,1.92044564,108620.0,108610.0,0.00047562]
[1756477604877,1.45188918,108590.0,108580.0,0.00107094]
[1756477605100,1.55693856,108590.0,108580.0,0.00107094]
[1756477605314,1.89895856,108590.0,108580.0,0.00107094]
[1756477605530,1.90173097,108590.0,108580.0,0.00107094]
[1756477605738,1.92672135,108590.0,108580.0,0.00107094]
[1756477606589,1.92389135,108590.0,108580.0,0.00107094]
[1756477606796,1.90173097,108590.0,108580.0,0.00107094]
[1756477607006,1.93450401,108590.0,108580.0,0.00107094]
[1756477607447,1.90828588,108590.0,108580.0,0.00107094]
[1756477607641,1.91111588,108590.0,108580.0,0.00107094]
[1756477608064,2.03998092,108590.0,108580.0,0.00107094]
[1756477608266,0.18419598,108580.0,108570.0,0.26409992]
[1756477608469,1.62971793,108580.0,108570.0,0.26409992]
[1756477609137,0.35993335,108580.0,108570.0,0.26409992]
[1756477609354,1.63249351,108580.0,108570.0,0.26409992]
[1756477609572,1.69702903,108580.0,108570.0,0.26409992]
[1756477609802,2.01804346,108580.0,108570.0,0.26409992]
[1756477610004,1.83699764,108570.0,108560.0,0.0004626]
[1756477610214,1.94193501,108570.0,108560.0,0.0004626]
[1756477610421,1.94678501,108570.0,108560.0,0.0004626]
[1756477610636,2.03508133,108570.0,108560.0,0.0004626]
[1756477610849,0.20516873,108560.0,108550.0,0.20171826]
[1756477611075,0.20516873,108560.0,108540.0,0.13736664]
[1756477611076,0.54518571,108550.0,108540.0,0.13736664]
[1756477611341,2.04266404,108550.0,108540.0,1e-08]
[1756477611555,2.02086562,108550.0,108540.0,1e-08]